[Event "St Kilda East and Caulfield Chess Club T3 2025 OPEN Thursdays"]
[Site "st kilda east, Australia"]
[Date "2025.09.18"]
[Round "7.5"]
[White "Hird, Jasper"]
[Black "Hennessy, Maurice"]
[Result "0-1"]
[TimeControl "60 minutes per player per game plus 10 seconds from move 1"]
[WhiteElo "1459"]
[BlackElo "1255"]

1. e4 {[%clk 01:00:07]} {[%emt 00:00:02]} c6 {[%clk 01:00:01]} {[%emt
00:00:10]} 2. d4 {[%clk 01:00:12]} {[%emt 00:00:05]} d5 {[%clk 01:00:07]}
{[%emt 00:00:04]} 3. e5 {[%clk 01:00:16]} {[%emt 00:00:05]} Bf5 {[%clk
00:59:43]} {[%emt 00:00:34]} 4. h4 {[%clk 01:00:18]} {[%emt 00:00:08]} h5
{[%clk 00:58:50]} {[%emt 00:01:04]} 5. Bg5 {[%clk 01:00:22]} {[%emt 00:00:06]}
f6 {[%clk 00:57:25]} {[%emt 00:01:34]} 6. Bf4 {[%clk 00:51:06]} {[%emt
00:09:26]} Qa5+ {[%clk 00:55:17]} {[%emt 00:02:18]} 7. c3 {[%clk 00:49:44]}
{[%emt 00:01:32]} Nd7 {[%clk 00:54:28]} {[%emt 00:00:59]} 8. Bd3 {[%clk
00:48:29]} {[%emt 00:01:26]} Bxd3 {[%clk 00:52:53]} {[%emt 00:01:45]} 9. Qxd3
{[%clk 00:48:20]} {[%emt 00:00:18]} O-O-O {[%clk 00:52:53]} {[%emt 00:00:11]}
10. e6 {[%clk 00:47:20]} {[%emt 00:01:10]} Nb6 {[%clk 00:49:49]} {[%emt
00:03:13]} 11. Nd2 {[%clk 00:46:21]} {[%emt 00:01:09]} Qa6 {[%clk 00:35:59]}
{[%emt 00:14:01]} 12. Qg3 {[%clk 00:45:26]} {[%emt 00:01:05]} Na8 {[%clk
00:33:35]} {[%emt 00:02:35]} 13. Ngf3 {[%clk 00:41:19]} {[%emt 00:04:16]} Nh6
{[%clk 00:31:50]} {[%emt 00:01:54]} 14. Bxh6 {[%clk 00:39:33]} {[%emt
00:01:56]} Rxh6 {[%clk 00:31:25]} {[%emt 00:00:35]} 15. Nb3 {[%clk 00:37:26]}
{[%emt 00:02:18]} b6 {[%clk 00:30:10]} {[%emt 00:01:26]} 16. a4 {[%clk
00:32:16]} {[%emt 00:05:20]} Qd3 {[%clk 00:23:16]} {[%emt 00:07:04]} 17. a5
{[%clk 00:31:33]} {[%emt 00:00:54]} Qe4+ {[%clk 00:19:35]} {[%emt 00:03:51]} 18.
Kd2 {[%clk 00:31:15]} {[%emt 00:00:28]} Nc7 {[%clk 00:16:10]} {[%emt 00:03:35]}
19. axb6 {[%clk 00:30:05]} {[%emt 00:01:20]} axb6 {[%clk 00:16:13]} {[%emt
00:00:07]} 20. Ra7 {[%clk 00:28:44]} {[%emt 00:01:30]} Rd6 {[%clk 00:16:10]}
{[%emt 00:00:13]} 21. Rha1 {[%clk 00:27:21]} {[%emt 00:01:32]} Kb8 {[%clk
00:14:41]} {[%emt 00:01:39]} 22. Ne1 {[%clk 00:20:43]} {[%emt 00:06:48]} Rg6
{[%clk 00:12:55]} {[%emt 00:01:55]} 23. Qd3 {[%clk 00:18:06]} {[%emt 00:02:48]}
Qxd3+ {[%clk 00:10:41]} {[%emt 00:02:24]} 24. Kxd3 {[%clk 00:16:07]} {[%emt
00:02:10]} Rxe6 {[%clk 00:10:28]} {[%emt 00:00:23]} 25. g3 {[%clk 00:14:14]}
{[%emt 00:02:03]} Rxe1 {[%emt 00:06:09]} 0-1